[Event "Fast Chess"]
[Site "ChessKid.com"]
[Date "2020.04.17"]
[Round "2"]
[White "Hlinka, Patrick"]
[Black "Li, Patrick"]
[Result "0-1"]
[ECO "C24"]
[WhiteElo "1122"]
[BlackElo "1075"]
[PlyCount "126"]
[EventDate "2020.??.??"]
[TimeControl "300"]
[WhiteClock "0:00:02"]
[BlackClock "0:00:01"]

1. e4 {[%emt 0:00:25]} e5 {[%emt 0:00:02]} 2. Bc4 {[%emt 0:00:02]} Nf6 {
[%emt 0:00:06]} 3. d3 {[%emt 0:00:03]} Nc6 {[%emt 0:00:03]} 4. Bg5 {[%emt 0:00:
03]} h6 {[%emt 0:00:07]} 5. Bxf6 {[%emt 0:00:02]} Qxf6 {[%emt 0:00:08]} 6. Qf3
{[%emt 0:00:04]} Qxf3 {[%emt 0:00:06]} 7. Nxf3 {[%emt 0:00:03]} Nd4 {[%emt 0:
00:04]} 8. Nxd4 {[%emt 0:00:05]} exd4 {[%emt 0:00:03]} 9. c3 {[%emt 0:00:03]}
dxc3 {[%emt 0:00:02]} 10. bxc3 {[%emt 0:00:01]} d6 {[%emt 0:00:04]} 11. d4 {
[%emt 0:00:05]} Bg4 {[%emt 0:00:04]} 12. e5 {[%emt 0:00:03]} dxe5 {[%emt 0:00:
03]} 13. dxe5 {[%emt 0:00:02]} Bc5 {[%emt 0:00:05]} 14. O-O {[%emt 0:00:06]}
Be2 {[%emt 0:00:05]} 15. Re1 {[%emt 0:00:04]} Bxc4 {[%emt 0:00:04]} 16. Re4 {
[%emt 0:00:10]} Bd5 {[%emt 0:00:06]} 17. Re2 {[%emt 0:00:19]} Bc4 {[%emt 0:00:
04]} 18. Re1 {[%emt 0:00:05]} Bd4 {[%emt 0:00:05]} 19. cxd4 {[%emt 0:00:12]}
Rd8 {[%emt 0:00:10]} 20. Nd2 {[%emt 0:00:02]} Bd3 {[%emt 0:00:06]} 21. e6 {
[%emt 0:00:05]} fxe6 {[%emt 0:00:05]} 22. Rxe6+ {[%emt 0:00:01]} Kf7 {[%emt 0:
00:04]} 23. d5 {[%emt 0:00:03]} Rxd5 {[%emt 0:00:03]} 24. Re3 {[%emt 0:00:06]}
Bh7 {[%emt 0:00:04]} 25. Ne4 {[%emt 0:00:14]} Rb5 {[%emt 0:00:06]} 26. Rb3 {
[%emt 0:00:09]} Rd5 {[%emt 0:00:08]} 27. Nc3 {[%emt 0:00:10]} Rd3 {[%emt 0:00:
10]} 28. Nd1 {[%emt 0:00:08]} Bf5 {[%emt 0:00:07]} 29. g4 {[%emt 0:00:08]} Rxb3
{[%emt 0:00:16]} 30. axb3 {[%emt 0:00:04]} Bxg4 {[%emt 0:00:02]} 31. Ne3 {
[%emt 0:00:01]} Bf3 {[%emt 0:00:04]} 32. Rc1 {[%emt 0:00:09]} Rc8 {[%emt 0:00:
07]} 33. Rc3 {[%emt 0:00:10]} Re8 {[%emt 0:00:12]} 34. Nf5 {[%emt 0:00:06]} Re5
{[%emt 0:00:08]} 35. Rxf3 {[%emt 0:00:03]} g6 {[%emt 0:00:05]} 36. Nd4+ {
[%emt 0:00:11]} Kg7 {[%emt 0:00:09]} 37. Kg2 {[%emt 0:00:15]} Rd5 {[%emt 0:00:
08]} 38. Ne6+ {[%emt 0:00:04]} Kh7 {[%emt 0:00:06]} 39. Nxc7 {[%emt 0:00:01]}
Rg5+ {[%emt 0:00:04]} 40. Kf1 {[%emt 0:00:05]} Rc5 {[%emt 0:00:04]} 41. Ne6 {
[%emt 0:00:08]} Rc1+ {[%emt 0:00:02]} 42. Ke2 {[%emt 0:00:03]} Rc2+ {[%emt 0:
00:04]} 43. Kd3 {[%emt 0:00:03]} Rb2 {[%emt 0:00:02]} 44. Kc4 {[%emt 0:00:03]}
Ra2 {[%emt 0:00:02]} 45. Nc5 {[%emt 0:00:03]} Rc2+ {[%emt 0:00:07]} 46. Kd4 {
[%emt 0:00:03]} Rd2+ {[%emt 0:00:06]} 47. Nd3 {[%emt 0:00:01]} Ra2 {[%emt 0:00:
08]} 48. Rf7+ {[%emt 0:00:03]} Kg8 {[%emt 0:00:03]} 49. Rxb7 {[%emt 0:00:08]}
Rd2 {[%emt 0:00:04]} 50. Rb8+ {[%emt 0:00:01]} Kg7 {[%emt 0:00:04]} 51. Kc5 {
[%emt 0:00:00]} Rxd3 {[%emt 0:00:08]} 52. Rc8 {[%emt 0:00:01]} Rc3+ {[%emt 0:
00:06]} 53. Kb4 {[%emt 0:00:05]} Rxc8 {[%emt 0:00:02]} 54. Ka3 {[%emt 0:00:01]}
Re8 {[%emt 0:00:03]} 55. Ka4 {[%emt 0:00:01]} Re7 {[%emt 0:00:03]} 56. Kb5 {
[%emt 0:00:00]} Re2 {[%emt 0:00:02]} 57. Kc4 {[%emt 0:00:00]} Rxf2 {[%emt 0:00:
00]} 58. Kb4 {[%emt 0:00:01]} Rxh2 {[%emt 0:00:00]} 59. Kc5 {[%emt 0:00:00]}
Rb2 {[%emt 0:00:01]} 60. Kc6 {[%emt 0:00:00]} Rxb3 {[%emt 0:00:01]} 61. Kd7 {
[%emt 0:00:00]} a5 {[%emt 0:00:01]} 62. Kd8 {[%emt 0:00:02]} a4 {[%emt 0:00:00]
} 63. Kc7 {[%emt 0:00:01]} a3 {[%emt 0:00:00] WideClassyQuiz won on time} 0-1

[Event "Fast Chess"]
[Site "ChessKid.com"]
[Date "2020.04.17"]
[Round "3"]
[White "Halimi, Dorian"]
[Black "Li, Tobias"]
[Result "0-1"]
[ECO "C01"]
[WhiteElo "1089"]
[BlackElo "1321"]
[PlyCount "48"]
[EventDate "2020.??.??"]
[TimeControl "300"]
[WhiteClock "0:03:53"]
[BlackClock "0:03:24"]

1. e3 {[%emt 0:00:00]} e5 {[%emt 0:00:01]} 2. Nf3 {[%emt 0:00:02]} Nc6 {
[%emt 0:00:05]} 3. Nc3 {[%emt 0:00:02]} Nf6 {[%emt 0:00:02]} 4. d4 {[%emt 0:00:
04]} exd4 {[%emt 0:00:04]} 5. exd4 {[%emt 0:00:02]} d5 {[%emt 0:00:04]} 6. Qe2+
{[%emt 0:00:04]} Be7 {[%emt 0:00:03]} 7. Bg5 {[%emt 0:00:01]} O-O {[%emt 0:00:
05]} 8. Bxf6 {[%emt 0:00:02]} Bxf6 {[%emt 0:00:02]} 9. g3 {[%emt 0:00:04]} Bg4
{[%emt 0:00:01]} 10. Bg2 {[%emt 0:00:04]} Nxd4 {[%emt 0:00:03]} 11. Qe3 {
[%emt 0:00:08]} Nxc2+ {[%emt 0:00:04]} 12. Kd1 {[%emt 0:00:14]} Nxe3+ {[%emt 0:
00:00]} 13. Ke1 {[%emt 0:00:12]} Nc2+ {[%emt 0:00:02]} 14. Kd2 {[%emt 0:00:06]}
Nxa1 {[%emt 0:00:00]} 15. Re1 {[%emt 0:00:02]} Bxf3 {[%emt 0:00:06]} 16. Bxf3 {
[%emt 0:00:02]} Bxc3+ {[%emt 0:00:02]} 17. bxc3 {[%emt 0:00:03]} Re8 {[%emt 0:
00:01]} 18. Rxa1 {[%emt 0:00:04]} Qg5+ {[%emt 0:00:04]} 19. Kc2 {[%emt 0:00:04]
} Qf5+ {[%emt 0:00:07]} 20. Kd2 {[%emt 0:00:03]} Qxf3 {[%emt 0:00:02]} 21. Rb1
{[%emt 0:00:03]} Re2+ {[%emt 0:00:05]} 22. Kd1 {[%emt 0:00:04]} Rxf2+ {[%emt 0:
00:02]} 23. Ke1 {[%emt 0:00:03]} Rxa2 {[%emt 0:00:02]} 24. Rxb7 {[%emt 0:00:05]
} Qh1# {[%emt 0:00:00] OnlyHungryKiwi won by checkmate} 0-1

[Event "Fast Chess"]
[Site "ChessKid.com"]
[Date "2020.04.17"]
[Round "3"]
[White "Georgiev, Maximilian"]
[Black "Li, Patrick"]
[Result "1-0"]
[ECO "C65"]
[WhiteElo "1333"]
[BlackElo "1072"]
[PlyCount "41"]
[EventDate "2020.??.??"]
[TimeControl "300"]
[WhiteClock "0:02:54"]
[BlackClock "0:03:53"]

1. e4 {[%emt 0:00:00]} e5 {[%emt 0:00:03]} 2. Nf3 {[%emt 0:00:01]} Nc6 {
[%emt 0:00:03]} 3. Bb5 {[%emt 0:00:02]} Bc5 {[%emt 0:00:04]} 4. d3 {[%emt 0:00:
03]} Nf6 {[%emt 0:00:06]} 5. h3 {[%emt 0:00:04]} O-O {[%emt 0:00:05]} 6. O-O {
[%emt 0:00:02]} h6 {[%emt 0:00:03]} 7. Bxc6 {[%emt 0:00:01]} dxc6 {[%emt 0:00:
05]} 8. Nxe5 {[%emt 0:00:02]} Qd4 {[%emt 0:00:04]} 9. Nf3 {[%emt 0:00:04]} Qb4
{[%emt 0:00:05]} 10. c3 {[%emt 0:00:07]} Qb6 {[%emt 0:00:04]} 11. b4 {[%emt 0:
00:03]} Bd6 {[%emt 0:00:06]} 12. Be3 {[%emt 0:00:07]} Qa6 {[%emt 0:00:07]} 13.
Nbd2 {[%emt 0:00:04]} Qb5 {[%emt 0:00:08]} 14. Nc4 {[%emt 0:00:03]} Be7 {
[%emt 0:00:15]} 15. a4 {[%emt 0:00:04]} Qh5 {[%emt 0:00:13]} 16. e5 {[%emt 0:
00:07]} Qg6 {[%emt 0:00:09]} 17. exf6 {[%emt 0:00:04]} Bxh3 {[%emt 0:00:05]}
18. Nh4 {[%emt 0:00:04]} Qg5 {[%emt 0:00:10]} 19. Bxg5 {[%emt 0:00:04]} hxg5 {
[%emt 0:00:06]} 20. fxe7 {[%emt 0:00:01]} Be6 {[%emt 0:00:05]} 21. exf8=Q+ {
[%emt 0:00:02] TallSnazzyBall won by resignation} 1-0

[Event "Fast Chess"]
[Site "ChessKid.com"]
[Date "2020.04.18"]
[Round "1"]
[White "Georgiev, Maximilian"]
[Black "Sasse, Gabriel"]
[Result "1-0"]
[ECO "C50"]
[WhiteElo "1379"]
[BlackElo "1307"]
[PlyCount "113"]
[EventDate "2020.??.??"]
[TimeControl "900"]
[WhiteClock "0:11:31"]
[BlackClock "0:12:00"]

1. e4 {[%emt 0:00:00]} e5 {[%emt 0:00:03]} 2. Nf3 {[%emt 0:00:01]} Nc6 {
[%emt 0:00:01]} 3. Bc4 {[%emt 0:00:01]} Bc5 {[%emt 0:00:02]} 4. O-O {[%emt 0:
00:03]} h6 {[%emt 0:00:00]} 5. d3 {[%emt 0:00:01]} Nf6 {[%emt 0:00:01]} 6. Nc3
{[%emt 0:00:02]} O-O {[%emt 0:00:01]} 7. Bb5 {[%emt 0:00:03]} d6 {[%emt 0:00:
01]} 8. a3 {[%emt 0:00:03]} Ne8 {[%emt 0:00:04]} 9. b4 {[%emt 0:00:03]} Bd4 {
[%emt 0:00:05]} 10. Bb2 {[%emt 0:00:03]} Bxc3 {[%emt 0:00:02]} 11. Bxc3 {
[%emt 0:00:01]} Qf6 {[%emt 0:00:01]} 12. a4 {[%emt 0:00:07]} Qg6 {[%emt 0:00:
01]} 13. Nh4 {[%emt 0:00:06]} Qg5 {[%emt 0:00:05]} 14. g3 {[%emt 0:00:06]} Qd8
{[%emt 0:00:05]} 15. a5 {[%emt 0:00:02]} a6 {[%emt 0:00:03]} 16. Bc4 {[%emt 0:
00:04]} Nd4 {[%emt 0:00:03]} 17. Bxd4 {[%emt 0:00:04]} exd4 {[%emt 0:00:02]}
18. Qd2 {[%emt 0:00:04]} Nf6 {[%emt 0:00:08]} 19. Nf5 {[%emt 0:00:07]} Bxf5 {
[%emt 0:00:03]} 20. exf5 {[%emt 0:00:01]} Ne8 {[%emt 0:00:03]} 21. Qf4 {
[%emt 0:00:04]} c5 {[%emt 0:00:05]} 22. bxc5 {[%emt 0:00:02]} dxc5 {[%emt 0:00:
01]} 23. Rab1 {[%emt 0:00:06]} Qd6 {[%emt 0:00:06]} 24. Qxd6 {[%emt 0:00:04]}
Nxd6 {[%emt 0:00:01]} 25. Bd5 {[%emt 0:00:03]} Rab8 {[%emt 0:00:04]} 26. Rb2 {
[%emt 0:00:03]} Nxf5 {[%emt 0:00:02]} 27. Rxb7 {[%emt 0:00:06]} Rxb7 {[%emt 0:
00:03]} 28. Bxb7 {[%emt 0:00:01]} Nd6 {[%emt 0:00:05]} 29. Bxa6 {[%emt 0:00:01]
} Ra8 {[%emt 0:00:04]} 30. Bc4 {[%emt 0:00:04]} Rxa5 {[%emt 0:00:03]} 31. Bd5 {
[%emt 0:00:02]} c4 {[%emt 0:00:06]} 32. dxc4 {[%emt 0:00:02]} Nxc4 {[%emt 0:00:
01]} 33. Bxc4 {[%emt 0:00:02]} Rc5 {[%emt 0:00:01]} 34. Bd3 {[%emt 0:00:03]} f6
{[%emt 0:00:07]} 35. Re1 {[%emt 0:00:02]} Kf7 {[%emt 0:00:05]} 36. Re4 {
[%emt 0:00:03]} Rd5 {[%emt 0:00:04]} 37. Bc4 {[%emt 0:00:06]} Kg6 {[%emt 0:00:
07]} 38. Bxd5 {[%emt 0:00:01]} Kf5 {[%emt 0:00:03]} 39. Rxd4 {[%emt 0:00:01]}
Ke5 {[%emt 0:00:26]} 40. Rd1 {[%emt 0:00:14]} g5 {[%emt 0:00:05]} 41. c4 {
[%emt 0:00:02]} Kd6 {[%emt 0:00:02]} 42. Rc1 {[%emt 0:00:03]} Kc5 {[%emt 0:00:
02]} 43. f4 {[%emt 0:00:05]} gxf4 {[%emt 0:00:02]} 44. gxf4 {[%emt 0:00:02]}
Kd4 {[%emt 0:00:01]} 45. c5 {[%emt 0:00:02]} Ke3 {[%emt 0:00:04]} 46. c6 {
[%emt 0:00:01]} Kxf4 {[%emt 0:00:01]} 47. c7 {[%emt 0:00:01]} Ke3 {[%emt 0:00:
01]} 48. c8=Q {[%emt 0:00:02]} Kd4 {[%emt 0:00:02]} 49. Qc4+ {[%emt 0:00:03]}
Ke5 {[%emt 0:00:25]} 50. Re1+ {[%emt 0:00:12]} Kd6 {[%emt 0:00:02]} 51. Bh1 {
[%emt 0:00:05]} f5 {[%emt 0:00:03]} 52. Qd3+ {[%emt 0:00:02]} Kc5 {[%emt 0:00:
03]} 53. Rc1+ {[%emt 0:00:01]} Kb4 {[%emt 0:00:02]} 54. Qd8 {[%emt 0:00:03]}
Kb3 {[%emt 0:00:03]} 55. Qb8+ {[%emt 0:00:01]} Ka2 {[%emt 0:00:03]} 56. Rc7 {
[%emt 0:00:04]} Ka3 {[%emt 0:00:01]} 57. Ra7# {[%emt 0:00:01] TallSnazzyBall
won by checkmate} 1-0

[Event "Fast Chess"]
[Site "ChessKid.com"]
[Date "2020.04.18"]
[Round "1"]
[White "Dai, Lana"]
[Black "Horvath, Alexander"]
[Result "0-1"]
[ECO "C42"]
[WhiteElo "1253"]
[BlackElo "1338"]
[PlyCount "30"]
[EventDate "2020.??.??"]
[TimeControl "900"]
[WhiteClock "0:12:47"]
[BlackClock "0:12:24"]

1. e4 {[%emt 0:00:02]} e5 {[%emt 0:00:02]} 2. Nf3 {[%emt 0:00:02]} Nf6 {
[%emt 0:00:03]} 3. Bc4 {[%emt 0:00:02]} Nxe4 {[%emt 0:00:03]} 4. Qe2 {[%emt 0:
00:03]} Nf6 {[%emt 0:00:03]} 5. Nxe5 {[%emt 0:00:12]} Be7 {[%emt 0:00:06]} 6.
Qd1 {[%emt 0:00:05]} d5 {[%emt 0:01:05]} 7. Bb3 {[%emt 0:00:16]} Bd6 {[%emt 0:
00:04]} 8. d4 {[%emt 0:00:19]} Bxe5 {[%emt 0:00:04]} 9. dxe5 {[%emt 0:00:01]}
Ne4 {[%emt 0:00:05]} 10. f3 {[%emt 0:00:13]} Qh4+ {[%emt 0:00:13]} 11. g3 {
[%emt 0:00:16]} Nxg3 {[%emt 0:00:02]} 12. Bxd5 {[%emt 0:00:15]} Nxh1+ {[%emt 0:
00:03]} 13. Ke2 {[%emt 0:00:14]} Qf2+ {[%emt 0:00:03]} 14. Kd3 {[%emt 0:00:06]}
Qxh2 {[%emt 0:00:05]} 15. f4 {[%emt 0:00:30]} Nf2+ {[%emt 0:00:12]
KeenOrangeTeeth won by resignation} 0-1

[Event "Fast Chess"]
[Site "ChessKid.com"]
[Date "2020.04.18"]
[Round "2"]
[White "Horvath, Alexander"]
[Black "Georgiev, Maximilian"]
[Result "0-1"]
[ECO "C20"]
[WhiteElo "1328"]
[BlackElo "1386"]
[PlyCount "38"]
[EventDate "2020.??.??"]
[TimeControl "900"]
[WhiteClock "0:14:08"]
[BlackClock "0:13:14"]

1. e4 {[%emt 0:00:07]} e5 {[%emt 0:00:02]} 2. Qh5 {[%emt 0:00:03]} Nc6 {
[%emt 0:00:02]} 3. Bc4 {[%emt 0:00:02]} g6 {[%emt 0:00:03]} 4. Qf3 {[%emt 0:00:
03]} Nf6 {[%emt 0:00:01]} 5. d3 {[%emt 0:00:02]} Bg7 {[%emt 0:00:02]} 6. Bg5 {
[%emt 0:00:03]} O-O {[%emt 0:00:03]} 7. Bxf6 {[%emt 0:00:04]} Bxf6 {[%emt 0:00:
01]} 8. Nc3 {[%emt 0:00:08]} Bg7 {[%emt 0:00:02]} 9. Bd5 {[%emt 0:00:04]} Nd4 {
[%emt 0:00:03]} 10. Qe3 {[%emt 0:00:06]} Nxc2+ {[%emt 0:00:01]} 11. Kd1 {
[%emt 0:00:03]} Nxe3+ {[%emt 0:00:01]} 12. fxe3 {[%emt 0:00:03]} Qg5 {[%emt 0:
00:05]} 13. Nf3 {[%emt 0:00:02]} Qxg2 {[%emt 0:00:03]} 14. Re1 {[%emt 0:00:18]}
Qxf3+ {[%emt 0:00:02]} 15. Kc2 {[%emt 0:00:02]} Qf6 {[%emt 0:00:05]} 16. Nb5 {
[%emt 0:00:26]} c6 {[%emt 0:00:07]} 17. Bxc6 {[%emt 0:00:05]} dxc6 {[%emt 0:00:
03]} 18. Nc7 {[%emt 0:00:02]} Rb8 {[%emt 0:00:03]} 19. Rf1 {[%emt 0:00:03]} Qd6
{[%emt 0:00:04] TallSnazzyBall won by resignation} 0-1

[Event "Fast Chess"]
[Site "ChessKid.com"]
[Date "2020.04.18"]
[Round "2"]
[White "Sasse, Gabriel"]
[Black "Dai, Lana"]
[Result "0-1"]
[ECO "C50"]
[WhiteElo "1298"]
[BlackElo "1263"]
[PlyCount "80"]
[EventDate "2020.??.??"]
[TimeControl "900"]
[WhiteClock "0:09:07"]
[BlackClock "0:11:59"]

1. e4 {[%emt 0:00:01]} e5 {[%emt 0:00:02]} 2. Nf3 {[%emt 0:00:01]} Nc6 {
[%emt 0:00:02]} 3. Bc4 {[%emt 0:00:01]} h6 {[%emt 0:00:05]} 4. Nc3 {[%emt 0:00:
01]} Nf6 {[%emt 0:00:02]} 5. h3 {[%emt 0:00:00]} Bc5 {[%emt 0:00:03]} 6. O-O {
[%emt 0:00:01]} d6 {[%emt 0:00:02]} 7. d3 {[%emt 0:00:05]} O-O {[%emt 0:00:18]}
8. Nd5 {[%emt 0:00:02]} Nxd5 {[%emt 0:00:07]} 9. exd5 {[%emt 0:00:02]} Nd4 {
[%emt 0:00:04]} 10. Nxd4 {[%emt 0:00:02]} Bxd4 {[%emt 0:00:02]} 11. Qf3 {
[%emt 0:00:04]} Bd7 {[%emt 0:00:21]} 12. Qg3 {[%emt 0:00:02]} b5 {[%emt 0:00:
07]} 13. Bxh6 {[%emt 0:00:03]} Qf6 {[%emt 0:00:32]} 14. Bg5 {[%emt 0:00:09]}
Qg6 {[%emt 0:00:12]} 15. Be7 {[%emt 0:00:02]} Qxg3 {[%emt 0:00:07]} 16. Bxf8 {
[%emt 0:00:07]} Qg5 {[%emt 0:00:15]} 17. c3 {[%emt 0:00:03]} bxc4 {[%emt 0:00:
03]} 18. cxd4 {[%emt 0:00:02]} Kxf8 {[%emt 0:00:02]} 19. dxc4 {[%emt 0:00:03]}
exd4 {[%emt 0:00:02]} 20. Rad1 {[%emt 0:00:03]} Qf4 {[%emt 0:00:15]} 21. g4 {
[%emt 0:00:05]} Ba4 {[%emt 0:00:20]} 22. Rde1 {[%emt 0:00:14]} Bc2 {[%emt 0:00:
11]} 23. Re2 {[%emt 0:00:06]} Be4 {[%emt 0:00:07]} 24. Rfe1 {[%emt 0:00:06]}
Bd3 {[%emt 0:00:16]} 25. Re7 {[%emt 0:00:10]} Rc8 {[%emt 0:00:25]} 26. b3 {
[%emt 0:00:09]} Qf3 {[%emt 0:00:23]} 27. b4 {[%emt 0:00:07]} Qxh3 {[%emt 0:00:
07]} 28. b5 {[%emt 0:00:06]} Qxg4+ {[%emt 0:00:02]} 29. Kh2 {[%emt 0:00:07]}
Qf4+ {[%emt 0:00:05]} 30. Kh1 {[%emt 0:00:03]} Qxf2 {[%emt 0:00:07]} 31. c5 {
[%emt 0:00:07]} dxc5 {[%emt 0:00:05]} 32. d6 {[%emt 0:00:02]} cxd6 {[%emt 0:00:
04]} 33. b6 {[%emt 0:00:07]} axb6 {[%emt 0:00:02]} 34. a4 {[%emt 0:00:01]} Qf3+
{[%emt 0:00:11]} 35. Kh2 {[%emt 0:00:04]} Bf5 {[%emt 0:00:03]} 36. a5 {[%emt 0:
00:06]} Qh3+ {[%emt 0:00:02]} 37. Kg1 {[%emt 0:00:03]} bxa5 {[%emt 0:00:10]}
38. R7e2 {[%emt 0:00:04]} Qg3+ {[%emt 0:00:12]} 39. Kf1 {[%emt 0:00:20]} Bh3+ {
[%emt 0:00:15]} 40. Rg2 {[%emt 0:00:03]} Qxg2# {[%emt 0:00:03] TopBrownCave
won by checkmate} 0-1

[Event "Fast Chess"]
[Site "ChessKid.com"]
[Date "2020.04.18"]
[Round "3"]
[White "Georgiev, Maximilian"]
[Black "Dai, Lana"]
[Result "0-1"]
[ECO "C50"]
[WhiteElo "1376"]
[BlackElo "1274"]
[PlyCount "124"]
[EventDate "2020.??.??"]
[TimeControl "900"]
[WhiteClock "0:05:55"]
[BlackClock "0:10:52"]

1. e4 {[%emt 0:00:02]} e5 {[%emt 0:00:02]} 2. Nf3 {[%emt 0:00:01]} Nc6 {
[%emt 0:00:02]} 3. Bc4 {[%emt 0:00:01]} h6 {[%emt 0:00:02]} 4. O-O {[%emt 0:00:
01]} Nf6 {[%emt 0:00:01]} 5. Nc3 {[%emt 0:00:01]} Bc5 {[%emt 0:00:02]} 6. h3 {
[%emt 0:00:03]} d6 {[%emt 0:00:02]} 7. a3 {[%emt 0:00:01]} a6 {[%emt 0:00:01]}
8. d3 {[%emt 0:00:01]} O-O {[%emt 0:00:03]} 9. Be3 {[%emt 0:00:01]} Bxe3 {
[%emt 0:00:04]} 10. fxe3 {[%emt 0:00:01]} b5 {[%emt 0:00:02]} 11. Ba2 {[%emt 0:
00:03]} b4 {[%emt 0:00:08]} 12. Nd5 {[%emt 0:00:02]} bxa3 {[%emt 0:00:12]} 13.
bxa3 {[%emt 0:00:02]} Nxd5 {[%emt 0:00:05]} 14. Bxd5 {[%emt 0:00:02]} Bd7 {
[%emt 0:00:09]} 15. Bxc6 {[%emt 0:00:02]} Bxc6 {[%emt 0:00:02]} 16. Re1 {
[%emt 0:00:06]} a5 {[%emt 0:00:17]} 17. d4 {[%emt 0:00:02]} exd4 {[%emt 0:00:
04]} 18. exd4 {[%emt 0:00:01]} d5 {[%emt 0:00:12]} 19. exd5 {[%emt 0:00:03]}
Bxd5 {[%emt 0:00:03]} 20. Rf1 {[%emt 0:00:02]} a4 {[%emt 0:00:08]} 21. c3 {
[%emt 0:00:06]} Bc4 {[%emt 0:00:05]} 22. Re1 {[%emt 0:00:04]} Bd5 {[%emt 0:00:
05]} 23. Ne5 {[%emt 0:00:05]} Bb7 {[%emt 0:00:24]} 24. Nf3 {[%emt 0:00:06]}
Bxf3 {[%emt 0:00:05]} 25. Qxf3 {[%emt 0:00:03]} Qd6 {[%emt 0:00:21]} 26. Kh1 {
[%emt 0:00:12]} Rae8 {[%emt 0:00:11]} 27. Rxe8 {[%emt 0:00:03]} Rxe8 {[%emt 0:
00:02]} 28. Kg1 {[%emt 0:00:05]} Qd7 {[%emt 0:00:47]} 29. Kh1 {[%emt 0:00:14]}
Qd6 {[%emt 0:00:20]} 30. Rf1 {[%emt 0:00:04]} Rf8 {[%emt 0:00:09]} 31. Ra1 {
[%emt 0:00:14]} Qe6 {[%emt 0:00:12]} 32. Re1 {[%emt 0:00:08]} Qxe1+ {[%emt 0:
00:05]} 33. Kh2 {[%emt 0:00:02]} Qe6 {[%emt 0:00:12]} 34. Qb7 {[%emt 0:00:08]}
Qd6+ {[%emt 0:00:05]} 35. Kh1 {[%emt 0:00:06]} Re8 {[%emt 0:00:06]} 36. Kg1 {
[%emt 0:00:02]} Re1+ {[%emt 0:00:07]} 37. Kf2 {[%emt 0:00:01]} Ra1 {[%emt 0:00:
13]} 38. Qa8+ {[%emt 0:00:05]} Kh7 {[%emt 0:00:05]} 39. Qxa4 {[%emt 0:00:02]}
Qf4+ {[%emt 0:00:03]} 40. Ke2 {[%emt 0:00:02]} Ra2+ {[%emt 0:00:05]} 41. Kd3 {
[%emt 0:00:03]} Qg3+ {[%emt 0:00:10]} 42. Kc4 {[%emt 0:00:04]} Qf2 {[%emt 0:00:
28]} 43. Qb3 {[%emt 0:00:07]} Qf1+ {[%emt 0:00:11]} 44. Kc5 {[%emt 0:00:08]}
Qf5+ {[%emt 0:00:05]} 45. Kc4 {[%emt 0:00:02]} Qe6+ {[%emt 0:00:04]} 46. d5 {
[%emt 0:00:03]} Qe4+ {[%emt 0:00:06]} 47. Kc5 {[%emt 0:00:03]} Qe7+ {[%emt 0:
00:16]} 48. Kd4 {[%emt 0:00:06]} Qxa3 {[%emt 0:00:07]} 49. Qb7 {[%emt 0:00:09]}
Qa4+ {[%emt 0:00:14]} 50. Kd3 {[%emt 0:00:05]} Qc2+ {[%emt 0:00:11]} 51. Kd4 {
[%emt 0:00:03]} Ra4+ {[%emt 0:00:04]} 52. c4 {[%emt 0:00:06]} Qxc4+ {[%emt 0:
00:03]} 53. Ke5 {[%emt 0:00:02]} f6+ {[%emt 0:00:05]} 54. Ke6 {[%emt 0:00:02]}
Ra6+ {[%emt 0:00:13]} 55. Ke7 {[%emt 0:00:06]} Qe4+ {[%emt 0:00:12]} 56. Kd7 {
[%emt 0:00:03]} Rb6 {[%emt 0:00:23]} 57. Qxc7 {[%emt 0:00:05]} Qxd5+ {[%emt 0:
00:07]} 58. Ke7 {[%emt 0:00:08]} Qe6+ {[%emt 0:00:06]} 59. Kf8 {[%emt 0:00:05]}
Qg8+ {[%emt 0:00:11]} 60. Ke7 {[%emt 0:00:02]} Re6+ {[%emt 0:00:05]} 61. Kd7 {
[%emt 0:00:04]} Qf7+ {[%emt 0:00:05]} 62. Kc8 {[%emt 0:00:03]} Re8+ {[%emt 0:
00:18] TopBrownCave won by resignation} 0-1

[Event "Fast Chess"]
[Site "ChessKid.com"]
[Date "2020.04.18"]
[Round "3"]
[White "Sasse, Gabriel"]
[Black "Horvath, Alexander"]
[Result "0-1"]
[ECO "C24"]
[WhiteElo "1291"]
[BlackElo "1339"]
[PlyCount "30"]
[EventDate "2020.??.??"]
[TimeControl "900"]
[WhiteClock "0:13:01"]
[BlackClock "0:14:09"]

1. e4 {[%emt 0:00:00]} e5 {[%emt 0:00:01]} 2. Nf3 {[%emt 0:00:01]} Nf6 {
[%emt 0:00:02]} 3. Bc4 {[%emt 0:00:00]} Nxe4 {[%emt 0:00:06]} 4. d4 {[%emt 0:
00:03]} exd4 {[%emt 0:00:08]} 5. Qxd4 {[%emt 0:00:02]} Qe7 {[%emt 0:00:09]} 6.
O-O {[%emt 0:00:08]} c5 {[%emt 0:00:07]} 7. Qd3 {[%emt 0:00:06]} Nc6 {[%emt 0:
00:11]} 8. Re1 {[%emt 0:00:02]} Qf6 {[%emt 0:00:07]} 9. Rxe4+ {[%emt 0:00:02]}
Be7 {[%emt 0:00:02]} 10. Rf4 {[%emt 0:00:11]} Qd6 {[%emt 0:00:37]} 11. Bxf7+ {
[%emt 0:00:08]} Kd8 {[%emt 0:00:11]} 12. Qxd6 {[%emt 0:00:02]} Bxd6 {[%emt 0:
00:02]} 13. Re4 {[%emt 0:00:02]} Rf8 {[%emt 0:00:06]} 14. Bd5 {[%emt 0:00:03]}
Nb4 {[%emt 0:00:07]} 15. Na3 {[%emt 0:00:02]} Nxd5 {[%emt 0:00:05]
KeenOrangeTeeth won by resignation} 0-1

[Event "Fast Chess"]
[Site "ChessKid.com"]
[Date "2020.04.19"]
[Round "1"]
[White "Dai, Lana"]
[Black "Georgiev, Maximilian"]
[Result "0-1"]
[ECO "B01"]
[WhiteElo "1272"]
[BlackElo "1350"]
[Annotator "Turmendspiel mit 2 gg 3 Bauern"]
[PlyCount "70"]
[EventDate "2020.??.??"]
[TimeControl "180"]
[WhiteClock "0:01:37"]
[BlackClock "0:00:01"]

1. e4 {[%emt 0:00:01]} d5 {[%emt 0:00:00]} 2. exd5 {[%emt 0:00:04]} Qxd5 {
[%emt 0:00:01]} 3. Nc3 {[%emt 0:00:05]} Qd8 {[%emt 0:00:01]} 4. Nf3 {[%emt 0:
00:04]} Nf6 {[%emt 0:00:00]} 5. Bc4 {[%emt 0:00:03]} e6 {[%emt 0:00:01]} 6. a3
{[%emt 0:00:04]} Be7 {[%emt 0:00:00]} 7. h3 {[%emt 0:00:02]} O-O {[%emt 0:00:
01]} 8. d3 {[%emt 0:00:02]} h6 {[%emt 0:00:00]} 9. Ne5 {[%emt 0:00:11]} a6 {
[%emt 0:00:01]} 10. O-O {[%emt 0:00:05]} Bd7 {[%emt 0:00:04]} 11. Bf4 {[%emt 0:
00:02]} Nc6 {[%emt 0:00:03]} 12. Nxd7 {[%emt 0:00:03]} Qxd7 {[%emt 0:00:02]}
13. Ne4 {[%emt 0:00:15]} Nxe4 {[%emt 0:00:03]} 14. dxe4 {[%emt 0:00:02]} Qxd1 {
[%emt 0:00:01]} 15. Raxd1 {[%emt 0:00:02]} Rad8 {[%emt 0:00:02]} 16. Rxd8 {
[%emt 0:00:02]} Rxd8 {[%emt 0:00:01]} 17. Bxc7 {[%emt 0:00:09]} Rd2 {[%emt 0:
00:02]} 18. Bb3 {[%emt 0:00:14]} Rd7 {[%emt 0:00:03]} 19. Bb6 {[%emt 0:00:06]}
Nd4 {[%emt 0:00:06]} 20. Bxd4 {[%emt 0:00:03]} Rxd4 {[%emt 0:00:01]} 21. e5 {
[%emt 0:00:06]} Re4 {[%emt 0:00:03]} 22. f4 {[%emt 0:00:10]} g5 {[%emt 0:00:04]
} 23. fxg5 {[%emt 0:00:11]} Bxg5 {[%emt 0:00:02]} 24. c4 {[%emt 0:00:15]} Rxe5
{[%emt 0:00:03]} 25. Ba4 {[%emt 0:00:04]} b5 {[%emt 0:00:04]} 26. cxb5 {
[%emt 0:00:05]} axb5 {[%emt 0:00:01]} 27. Bb3 {[%emt 0:00:06]} Be3+ {[%emt 0:
00:03]} 28. Kh1 {[%emt 0:00:06]} Rg5 {[%emt 0:00:07]} 29. a4 {[%emt 0:00:05]}
bxa4 {[%emt 0:00:03]} 30. Bxa4 {[%emt 0:00:01]} Ra5 {[%emt 0:00:04]} 31. Bd7 {
[%emt 0:00:03]} Rd5 {[%emt 0:00:04]} 32. Bc6 {[%emt 0:00:03]} Rc5 {[%emt 0:00:
04]} 33. Bb7 {[%emt 0:00:02]} Rb5 {[%emt 0:00:04]} 34. Re1 {[%emt 0:00:02]}
Rxb7 {[%emt 0:00:03]} 35. Rxe3 {[%emt 0:00:01]} Rxb2 {[%emt 0:00:01]
TallSnazzyBall won on time} 0-1